Cogmind - Beta 14 @@@ ROGUE MODE // 2024.09.05 @ 11:41:18 Player: THN-L0C Result: Destroyed by 8R-AWN with 8R-AWN's Boregun Performance ------------- Evolutions (0) 0 Regions Visited (3) 600 Robots Destroyed (16) 80 Value Destroyed (279) 279 Prototype IDs (23) 460 Alien Tech Used (0) 0 Bonus (300) 300 TOTAL SCORE: 1719 Bonus ------- Aligned with FarCom 300 Cogmind --------- Core Integrity 0/250 Matter 155/300 Energy 100/100 System Corruption 0% Temperature Cool (0) Movement Core (400) Ox7 Location -10/Exiles Parts ------- > --- POWER (1) -------- (None) > --- PROPULSION (2) --- (None) > --- UTILITY (2) ------ Large Storage Unit > --- WEAPON (2) ------- Grenade Launcher > --- INVENTORY (15) --- High-capacity Matter Pod (200) Propulsion Shielding Assault Rifle Assault Rifle Light Assault Rifle Peak State ------------ > --- POWER ------------ Ion Engine > --- PROPULSION ------- Light Treads Light Treads > --- UTILITY ---------- Large Storage Unit Cloak of Protection > --- WEAPON ----------- AWS/Gauss > --- INVENTORY -------- Light Fission Core Light Treads High-capacity Matter Pod Propulsion Shielding Assault Rifle Assault Rifle Light Assault Rifle Grenade Launcher [Rating: 29] Favorites ----------- Power Ion Engine Engine Ion Engine Propulsion Light Treads Treads Light Treads Utility Large Storage Unit Device Seismic Detector Storage Large Storage Unit Weapon Assault Rifle Ballistic Gun Assault Rifle Launcher Grenade Launcher Build | -11 -10 -10 -10 ------- Run | Yrd Mat Min Exi Slots Evolved . | . . . . Power . | . . . . Propulsion . | . . . . Utility . | . . . . Weapon . | . . . . Parts Attached 20 | 7 9 . 4 Power 1 | 1 . . . Engine 1 | 1 . . . Core . | . . . . Reactor . | . . . . Propulsion 5 | 2 2 . 1 Treads 5 | 2 2 . 1 Leg . | . . . . Wheel . | . . . . Hover . | . . . . Flight . | . . . . Utility 4 | 2 1 . 1 Device 2 | 1 . . 1 Storage 2 | 1 1 . . Processor . | . . . . Hackware . | . . . . Protection . | . . . . Artifact . | . . . . Weapon 10 | 2 6 . 2 Energy Gun . | . . . . Energy Cannon . | . . . . Ballistic Gun 7 | 2 4 . 1 Ballistic Cannon . | . . . . Launcher 3 | . 2 . 1 Special Weapon . | . . . . Impact Weapon . | . . . . Slashing Weapon . | . . . . Piercing Weapon . | . . . . Special Melee Weapon . | . . . . Unidentified Prototypes . | . . . . Parts Lost 6 | . . . 6 Power 1 | . . . 1 Propulsion 3 | . . . 3 Utility 1 | . . . 1 Weapon 1 | . . . 1 Highest Loss Streak 4 | . . . 4 To Critical Strikes 6 | . . . 6 Average Slot Usage (%) 95 | . 100 100 92 Engine 13 | . 14 14 13 Treads 27 | . 28 28 26 Device 11 | . 14 14 9 Storage 14 | . 14 14 14 Ballistic Gun 17 | . 25 14 13 Launcher 9 | . 2 14 13 Peak Build Rating 29 | 7 8 8 29 Average Rating 9 | 5 7 8 10 On Entrance 5 | . 7 8 8 Naked Turns . | . . . . Heaviest Build 43 | 14 31 31 43 Greatest Support 40 | 40 40 40 40 Greatest Overweight (x) 4 | 4 1 . 2 Average Overweight (x) . | . . . . Largest Inventory Capacity 15 | 8 15 15 15 Average Capacity 14 | 7 14 15 15 Most Carried 15 | . 15 15 15 Average Carried 10 | . 7 15 13 Final Capacity 15 | 8 15 15 15 Final Carried 15 | . 15 15 5 Class Distribution -------------------- 100% | Mutant Dominant Class ---------------- Mutant | -10/Materials Mutant | -10/Mines Mutant | -10/Exiles Resources | -11 -10 -10 -10 ----------- Run | Yrd Mat Min Exi Matter Collected 1680 | 239 289 . 1152 Remotely . | . . . . Salvage Created 538 | 95 443 . . Parts 37 | 7 30 . . Haulers Intercepted 1 | . 1 . . Recyclers Shooed 3 | 3 . . . Parts Field Recycled . | . . . . Retrieved Matter . | . . . . Parts Self-Destructed . | . . . . Prevented . | . . . . Kills | -11 -10 -10 -10 ------- Run | Yrd Mat Min Exi Combat Hostiles Destroyed 9 | . 8 . 1 Guns 9 | . 8 . 1 Classes Destroyed 8 | 1 6 . 1 Worker 1 | . 1 . . Tunneler 4 | 4 . . . Hauler 1 | . 1 . . Recycler 1 | . 1 . . Operator 1 | . 1 . . Swarmer 3 | . 3 . . Grunt 5 | . 5 . . Assembled 1 | . . . 1 Best Kill Streak 3 | 2 3 . 1 Combat Bots Only 3 | . 3 . 1 Max Kills in Single Turn 2 | 1 2 . 1 Gunslinging . | . . . . Exploded . | . . . . Melee . | . . . . Uniques/NPCs Destroyed . | . . . . Combat | -11 -10 -10 -10 -------- Run | Yrd Mat Min Exi Hostile Shots Fired 122 | . 40 . 82 Missed 30 | . 12 . 18 Damage Taken 1373 | . 330 . 1043 Core 250 | . 49 . 201 Absorbed by Shields . | . . . . Core Remaining (%) 100 | 100 . . . Volleys Fired 80 | 12 50 . 18 Largest 2 | 2 2 . 2 Hottest 50 | 40 40 . 50 Shots Fired 141 | 24 98 . 19 Gun 122 | 24 96 . 2 Cannon . | . . . . Launcher 19 | . 2 . 17 Special . | . . . . Kinetic 122 | 24 96 . 2 Thermal . | . . . . Explosive 19 | . 2 . 17 Electromagnetic . | . . . . Robot Hit Streak 10 | 5 10 . 5 Robot Miss Streak 5 | 2 5 . . Penetration Max . | . . . . Secondary Targets . | . . . . Shots Hit Robots 72 | 12 57 . 3 Core Hits 35 | 6 24 . 5 Critical Kills . | . . . . Critical Parts Destroyed 1 | . 1 . . Critical Strikes 1 | . 1 . . Destroy 1 | . 1 . . Melee Attacks . | . . . . Impact . | . . . . Slashing . | . . . . Piercing . | . . . . Sneak Attacks . | . . . . Combat Hostiles . | . . . . Follow-up Attacks . | . . . . Damage Inflicted 832 | 140 578 . 114 Guns 703 | 133 557 . 13 Cannons . | . . . . Explosions 122 | . 21 . 101 Melee . | . . . . Ramming 7 | 7 . . . Kinetic 703 | 133 557 . 13 Thermal . | . . . . Explosive 122 | . 21 . 101 Electromagnetic . | . . . . Impact . | . . . . Slashing . | . . . . Piercing . | . . . . Highest Corruption . | . . . . Average Corruption . | . . . . Corruption Purged . | . . . . Corruption Blocked . | . . . . Overload Shots . | . . . . Overflow Damage . | . . . . Projectiles . | . . . . Explosions . | . . . . Melee . | . . . . Knockbacks . | . . . . Impact . | . . . . Kinetic . | . . . . Secondary . | . . . . Self-Inflicted Damage . | . . . . Shots . | . . . . Rammed 1 | 1 . . . Targets Rammed 1 | 1 . . . Kicked . | . . . . Crushed . | . . . . Highest Temperature 12 | . 12 . . Average Temperature 8 | . 8 . . Received Heat Transfer 138 | . 138 . . Siege Activations . | . . . . Robots Corrupted . | . . . . Combat Hostiles . | . . . . Parts Fried . | . . . . Impact Corruptions . | . . . . Robots Melted . | . . . . Combat Hostiles . | . . . . Parts Melted . | . . . . Heat Transferred . | . . . . Parts Sabotaged . | . . . . Parts Stolen . | . . . . Parts Stripped . | . . . . Power Chain Reactions . | . . . . Alert | -11 -10 -10 -10 ------- Run | Yrd Mat Min Exi Peak Influence 243 | 20 243 2 . Initial 13 | . 13 2 . Average 78 | 7 95 2 . Maximum Alert Level 1 | . 1 . . Low Security (%) 87 | 100 84 100 . Level 1 12 | . 15 . . Level 2 . | . . . . Level 3 . | . . . . Level 4 . | . . . . Level 5 . | . . . . High Security . | . . . . Max Security . | . . . . Squads Dispatched . | . . . . Investigation . | . . . . Extermination . | . . . . Reinforcement . | . . . . Assault . | . . . . Garrison . | . . . . Intercept . | . . . . Searches Triggered . | . . . . Construction Impeded . | . . . . Haulers Reinforced . | . . . . Active Scanning Responses . | . . . . Cargo Convoy Interrupts . | . . . . Stealth | -11 -10 -10 -10 --------- Run | Yrd Mat Min Exi Distress Signals 1 | . 1 . . Communications Jammed . | . . . . Distress Signals . | . . . . Times Spotted 27 | . 20 . 7 Peak Tracking Total 9 | . 4 . 9 Tactical Retreats 1 | . 1 . . Traps | -11 -10 -10 -10 ------- Run | Yrd Mat Min Exi Traps Triggered 1 | . 1 . . Indirectly . | . . . . Trap Hack Attempts . | . . . . Triggered . | . . . . Disarmed . | . . . . Reprogrammed . | . . . . Reused . | . . . . Traps Extracted . | . . . . Installed . | . . . . Triggered . | . . . . Machines | -11 -10 -10 -10 ---------- Run | Yrd Mat Min Exi Machines Disabled 3 | . . . 3 Max in Single Turn 1 | . . . 1 Machines Repaired . | . . . . Machines Dismantled . | . . . . Machines Sabotaged . | . . . . Overloaded Fab Kills . | . . . . Hacking | -11 -10 -10 -10 --------- Run | Yrd Mat Min Exi Machines Accessed 7 | . 6 . 1 Terminals 6 | . 6 . . Fabricators . | . . . . Repair Stations . | . . . . Recycling Units . | . . . . Scanalyzers . | . . . . Garrison Access . | . . . . Total Hacks 20 | . 19 . 1 Successful 10 | . 9 . 1 Failed 9 | . 9 . . Catastrophic . | . . . . Database Lockouts 1 | . 1 . . Manual 17 | . 16 . 1 Terminals 19 | . 19 . . Fabricators . | . . . . Repair Stations . | . . . . Recycling Units . | . . . . Scanalyzers . | . . . . Garrison Access . | . . . . Terminal Hacks 4 | . 3 . 1 Robot Analysis 2 | . 2 . . Locate Traps 1 | . 1 . . Derelict Proto ID Bank 1 | . . . 1 Fabricator Hacks . | . . . . Repair Station Hacks . | . . . . Recycling Unit Hacks . | . . . . Scanalyzer . | . . . . Garrison Access Hacks . | . . . . Unauthorized Hacks 6 | . 6 . . Terminals 6 | . 6 . . Botnet 1 | . 1 . . Skim 5 | . 5 . . Fabricators . | . . . . Repair Stations . | . . . . Recycling Units . | . . . . Scanalyzers . | . . . . Garrison Access . | . . . . Data Cores Recovered 1 | . 1 . . Used . | . . . . Hacking Detections 5 | . 5 . . Full Trace Events . | . . . . Feedback Events . | . . . . Feedback Blocked . | . . . . Robot Schematics Acquired . | . . . . Robots Built . | . . . . Authchips . | . . . . Time . | . . . . Total Robot Build Rating . | . . . . Part Schematics Acquired . | . . . . Parts Built . | . . . . Authchips . | . . . . Time . | . . . . Total Part Build Rating . | . . . . Parts Repaired . | . . . . Time . | . . . . Parts Recycled . | . . . . Recycled Matter . | . . . . Retrieved Matter . | . . . . Retrieved Components . | . . . . Parts Scanalyzed . | . . . . Part Schematics Acquired . | . . . . Parts Damaged . | . . . . Bothacking | -11 -10 -10 -10 ------------ Run | Yrd Mat Min Exi Used RIF Installer . | . . . . Robots Hacked . | . . . . Non-combat . | . . . . Combat . | . . . . Robot Hacks Applied . | . . . . Relay Couplers Released . | . . . . Fabnet Peak Effective % . | . . . . Robots Rewired . | . . . . Allies Hacked . | . . . . Hacks Repelled . | . . . . Allies | -11 -10 -10 -10 -------- Run | Yrd Mat Min Exi Total Allies . | . . . . Largest Group . | . . . . Highest-Rated Group . | . . . . Highest-Rated Ally . | . . . . Total Orders . | . . . . Ally Attacks . | . . . . Total Damage . | . . . . Kills . | . . . . Allies Corrupted . | . . . . Allies Melted . | . . . . Intel | -11 -10 -10 -10 ------- Run | Yrd Mat Min Exi Robot Analysis Total 2 | . 2 . . Derelict Logs Recovered . | . . . . Drone Launches . | . . . . Drone Recoveries . | . . . . Exploration | -11 -10 -10 -10 ------------- Run | Yrd Mat Min Exi Turns Passed 2919 | 165 927 55 1772 Spaces Moved 1610 | 73 460 35 1042 Core 17 | 17 . . . Treads 1593 | 56 460 35 1042 Legs . | . . . . Wheels . | . . . . Hover . | . . . . Flight . | . . . . Fastest Speed 50 | 50 160 160 160 Average Speed 162 | 162 160 160 163 Slowest Speed 320 | 250 240 160 320 Overloaded Moves . | . . . . Propulsion Burnouts . | . . . . Robots Hopped . | . . . . Cave-ins Triggered . | . . . . Exploration Rate (%) 42 | 6 80 13 70 Regions Visited 3 Branch Regions 2 Pre-discovered Areas 1 | . 1 . . Known Exits Taken 1 | . 1 . . Unknown Exits Taken 2 | 1 . 1 . Scrap Searched . | . . . . Spaces Dug . | . . . . Terrain Destroyed 37 | . 13 . 24 Melee . | . . . . Projectile . | . . . . AOE 37 | . 13 . 24 Terrain Rammed . | . . . . Walls Destroyed . | . . . . Machines Disabled . | . . . . Actions | -11 -10 -10 -10 --------- Run | Yrd Mat Min Exi Total 1789 | 94 562 34 1099 Wait 36 | 2 31 . 3 Move 1607 | 72 459 34 1042 Hop . | . . . . Pick Up 22 | . 12 . 10 Fast Attach 9 | 7 2 . . Attach 4 | . . . 4 Detach 3 | . . . 3 Swap 7 | . 7 . . Drop 20 | . 1 . 19 Fire 80 | 12 50 . 18 Melee . | . . . . Ram . | . . . . Kick . | . . . . Crush 1 | 1 . . . Escape Stasis . | . . . . Rewire . | . . . . Trap . | . . . . Miscellaneous . | . . . . Route ------- -11/Scrapyard -10/Materials (discovered 5 exits: *Mat x3 / *Min / Sub) -10/Mines (discovered 3 exits: Mat x2 / *Exi) -10/Exiles (discovered 2 exits: *Min x2) History --------- Turn | Location | Event 26 | -11/Scrapyard | Discovered new exit (range 16) 166 | -11/Scrapyard | Entered Materials 305 | -10/Materials | Build established: Mutant 587 | -10/Materials | Discovered new exit (range 8) 819 | -10/Materials | Discovered new exit (range 16) 869 | -10/Materials | Identified exit to Materials 869 | -10/Materials | Identified exit to Subcaves 869 | -10/Materials | Identified exit to Mines 910 | -10/Materials | Learned location of 1 exit from Recycling 981 | -10/Materials | Learned location of 2 exits from Materials 985 | -10/Materials | Learned location of Mines (-9) 998 | -10/Materials | Learned Storage terminal intel 1017 | -10/Materials | Central database locked down 1093 | -10/Materials | Entered Mines 1141 | -10/Mines | Deemed a non-threat by the Exiles lab entrance 1141 | -10/Mines | Discovered new exit (range 5) 1148 | -10/Mines | Entered Exiles 1149 | -10/Exiles | Identified exit to Mines 1188 | -10/Exiles | Met 8R-AWN 1216 | -10/Exiles | Met EX-HEX 1259 | -10/Exiles | Met EX-BIN 1276 | -10/Exiles | Aligned with FarCom system 1278 | -10/Exiles | Given EX-Vault access code 1320 | -10/Exiles | Opened EX-Vault 1330 | -10/Exiles | Found Cloak of Protection 1362 | -10/Exiles | Warned to stay clear of 0b10 Research branches 1418 | -10/Exiles | Met EX-DEC 2557 | -10/Exiles | Found AWS/Gauss 2725 | -10/Exiles | Attacked by the Exiles 2852 | -10/Exiles | Core integrity fell below 50% 2886 | -10/Exiles | Lost 4 parts (1p2n1u) 2909 | -10/Exiles | Core integrity fell below 20% 2920 | -10/Exiles | Destroyed by 8R-AWN with 8R-AWN's Boregun Last Messages --------------- 02881_ Penetrated by HV Slug. 02881_ HV Slug penetrates Wall. 02885_ Penetrated by HV Slug. 02885_ HV Slug penetrates Wall. 02890_ Penetrated by HV Slug. 02890_ Critical hit (Destroy). 02890_ AWS/Gauss destroyed. 02894_ Penetrated by HV Slug. 02894_ Machine disabled. 02898_ Penetrated by HV Slug. 02898_ Critical hit (Destroy). 02898_ Lgt. Treads destroyed. 02898_ HV Slug penetrates Wall. 02902_ Penetrated by HV Slug. 02908_ HV Slug penetrates Earth. 02908_ Penetrated by HV Slug. 02916_ HV Slug penetrates Earth. 02916_ HV Slug penetrates Wall. 02919_ The unstable cave ceiling collapses. 02920_ Penetrated by HV Slug. Map ----- +----------------------------------------------------+ | ????????????????????????????????????????????????? | | ????????????????????????????????????????????????? | | ????????????????????????????????????????????????? | | ????????????????????????????????????????????????? | | ????????????????????????????????????????????????? | | ????????????????????????????????????????????????? | | ????????????????????????????????????????????????? | | ??????????????????>?????????????????????????????? | | ????????????????????????????????????????????????? | | ????????????????????????????????????????????????? | | ???????????????# ??????????????????????????????? | | ????????????????# ?????????????????????????????? | | ????????????????# ???????????????????????????? | | ?????????????????# ??????????????#######?????? | | ?????????????????# #######??????#!!! "#?????? | | ?????????????????# #""##?????# "#?????? | | ?????????????????## #?????# "#?????? | | ??????????????????##" ##???## ""#?????? | | ??????????????????#"" #####" ""#?????? | | ??????????????????#### ##" ""#?????? | | ?????????????????????## #"" ###?????? | | ??????????????????????#"## #???????? | | ??????????????????????####### ##??????? | | ???????????????????????# #####" "#??????? | | ??????????????##########;;#;; ###????? | | ??????????????# ; @ g * ##???? | | ??????????????#### ;!! " %""### | | ????????????????# ### #! #" "" | | ????????????????????#?#! !! " | | ???????????????????? ; ! " #"# | | ???????????????????# ###;## ## ##### | | ???????????????????###??### ########???### | | ??????????????????????????####????????????### | | ????????????????????????????????????????????## | | ?????????????????????????????????????????????## | | ??????????????????????????????????????????????##" | | ???????????????????????????????????????????????#" | | ??????????????????????????????????????????????##" | | ??????????????????????????????????????????????#"" | | ?????????????????????????????????????????????##"" | | ?????????????????????????????????????????????#""" | | ?????????????????????????????????????????????#""" | | ?????????????????????????????????????????????#"" | | ?????????????????????????????????????????????#""" | | ?????????????????????????????????????????????#"" | | ?????????????????????????????????????????????##"" | | ??????????????????????????????????????????????#"" | | ??????????????????????????????????????????????## | | ???????????????????????????????????????????????#" | | ???????????????????????????????????????????????#" | +----------------------------------------------------+ Best States ------------- Heat Dissipation 25 Energy Generation 10 Energy Capacity 250 Matter Stores 300 Matter Capacity 300 Sight Range 16 Terrain Scan Density 10 Cloak Strength 5 Evasion (%) 40 Recoil Reduction 2 Item Schematics ----------------- None Robot Schematics ------------------ None Fabricated ------------ Nothing Alien Tech Used ----------------- None Achievements -------------- None Challenges ------------ None Game ------ Seed AutogunHypervelocityMachine Manual? 0 Play Time 00:21:05 Cumulative 217.4 hours Start 2024.09.05 @ 10:45:22 End 2024.09.05 @ 11:41:18 Sessions 1 Manual Loads 0 Difficulty Rogue Special Mode None Game No. 190 Rogue 190 Adventurer 0 Explorer 0 Win Type - Total 1 Types 0/0/0/1/0/0/0/0/0 Lore% 63 Gallery% 73 Achievement% 54 Wizard Run 0 Options --------- Layout 2 ASCII 0 Keyboard 1 Movement Vi Keybinds 0 Fullscreen 1 Font 32/SmallcapsGlow Map View 77x44 Zoom Use 0% Tactical HUD 1 Map Filters NONE Filters NONE Steam 1 RUN: 839cf241-4e19-4785-82dc-110a5fd4ff86